Cogmind - Beta 15 @@@ ROGUE MODE // 2025.07.23 @ 14:36:23 Player: beans Result: Destroyed by NG-SB8(R) with Subdweller Laser Performance ------------- Evolutions (0) 0 Regions Visited (2) 400 Robots Destroyed (23) 115 Value Destroyed (248) 248 Prototype IDs (11) 220 Alien Tech Used (0) 0 Bonus (0) 0 TOTAL SCORE: 983 Bonus ------- None Cogmind --------- Core Integrity 0/250 Matter 233/300 Energy 180/180 System Corruption 0% Temperature Cool (6) Movement Core (200) Ox3 Location -10/Subcaves Parts ------- > --- POWER (1) -------- Meta Core > --- PROPULSION (2+1) - (None) > --- UTILITY (2+1) ---- Hacking Suite > --- WEAPON (2+1) ----- Barrage Gun Battle Cannon > --- INVENTORY (5) ---- Light Ion Engine Makeshift Thermal Plating Subdweller Beam Cannon Makeshift Hammer Piercing Trap Peak State ------------ > --- POWER ------------ Meta Core > --- PROPULSION ------- Flight Unit > --- UTILITY ---------- Hacking Suite > --- WEAPON ----------- Barrage Gun Battle Cannon > --- INVENTORY -------- Light Ion Engine Makeshift Thermal Plating Subdweller Beam Cannon Makeshift Hammer Piercing Trap [Rating: 23] Favorites ----------- Power Ion Engine Engine Ion Engine Power Core Meta Core Propulsion Flight Unit Treads Light Treads Flight Unit Flight Unit Utility Improved Terrain Scanner Device Improved Terrain Scanner Hackware Hacking Suite Weapon Medium Laser Energy Gun Medium Laser Ballistic Gun Barrage Gun Ballistic Cannon Battle Cannon Launcher Grenade Launcher Special Weapon Mining Laser Build | -11 -10 -10 ------- Run | Yrd Mat Sub Slots Evolved . | . . . Power . | . . . Propulsion . | . . . Utility . | . . . Weapon . | . . . Parts Attached 17 | 6 6 5 Power 4 | 1 1 2 Engine 3 | 1 1 1 Core 1 | . . 1 Reactor . | . . . Propulsion 4 | 1 3 . Treads 1 | 1 . . Leg . | . . . Wheel . | . . . Hover . | . . . Flight 3 | . 3 . Utility 2 | 1 1 . Device 1 | 1 . . Storage . | . . . Processor . | . . . Hackware 1 | . 1 . Protection . | . . . Artifact . | . . . Weapon 7 | 3 1 3 Energy Gun 3 | 2 . 1 Energy Cannon . | . . . Ballistic Gun 1 | . . 1 Ballistic Cannon 1 | . . 1 Launcher 1 | . 1 . Special Weapon 1 | 1 . . Impact Weapon . | . . . Slashing Weapon . | . . . Piercing Weapon . | . . . Special Melee Weapon . | . . . Unidentified Prototypes . | . . . Parts Lost 8 | . 4 4 Power 1 | . 1 . Propulsion 3 | . 1 2 Utility 1 | . 1 . Weapon 3 | . 1 2 Highest Loss Streak 3 | . 3 1 To Critical Strikes . | . . . Average Backups 1 | . . 2 Power . | . . . Propulsion . | . . . Utility . | . . . Weapon . | . . . Tool/Special . | . . . Unused Backups 5 | 2 . 3 Power . | . . . Propulsion . | . . . Utility 3 | 2 . 1 Weapon 2 | . . 2 Tool/Special . | . . . Average Slot Usage (%) 52 | . 45 54 Engine 5 | . 11 4 Core 3 | . . 4 Flight 14 | . 10 15 Hackware 9 | . 1 12 Energy Gun 4 | . 16 1 Ballistic Gun 6 | . . 8 Ballistic Cannon 5 | . . 7 Peak Build Rating 23 | 6 7 23 Average Rating 8 | 5 3 14 On Entrance 4 | . 6 7 Naked Turns . | . . . Heaviest Build 12 | 10 10 12 Greatest Support 8 | 3 8 8 Greatest Overweight (x) 3 | 3 3 2 Average Overweight (x) 1 | 2 . . Largest Inventory Capacity 5 | 5 5 5 Average Capacity 5 | 5 5 5 Most Carried 5 | 3 1 5 Average Carried 1 | . . 3 Final Capacity 5 | 5 5 5 Final Carried 5 | . . 5 Class Distribution -------------------- 97% | Mutant Dominant Class ---------------- Mutant | -10/Materials Mutant | -10/Subcaves Resources | -11 -10 -10 ----------- Run | Yrd Mat Sub Matter Collected 536 | 270 47 219 Remotely . | . . . Salvage Created 479 | 308 82 89 Parts 48 | 29 15 4 Haulers Intercepted . | . . . Recyclers Shooed 1 | 1 . . Parts Field Recycled . | . . . Retrieved Matter . | . . . Parts Self-Destructed 2 | . . 2 Prevented . | . . . Kills | -11 -10 -10 ------- Run | Yrd Mat Sub Combat Hostiles Destroyed 8 | . 6 2 Guns 3 | . 2 1 AOE 4 | . 3 1 Classes Destroyed 7 | 3 3 1 Worker 4 | 4 . . Tunneler 8 | 8 . . Recycler 1 | 1 . . Operator 1 | . 1 . Watcher 1 | . 1 . Swarmer 6 | . 6 . Subdweller 2 | . . 2 Best Kill Streak 7 | 7 5 1 Combat Bots Only 3 | . 3 1 Max Kills in Single Turn 3 | 1 3 1 Gunslinging . | . . . Exploded 3 | . 3 1 Melee . | . . . Uniques/NPCs Destroyed . | . . . Combat | -11 -10 -10 -------- Run | Yrd Mat Sub Hostile Shots Fired 91 | . 64 27 Missed 27 | . 16 11 Hits 64 | . 48 16 Projectile 64 | . 48 16 Critical Strikes 1 | . 1 . Damage Taken 791 | . 417 374 Core 250 | . 139 111 Absorbed by Shields . | . . . Core Remaining (%) 100 | 100 . . Volleys Fired 110 | 38 27 45 Largest 2 | 2 2 2 Hottest 100 | 100 100 61 Shots Fired 166 | 70 42 54 Gun 141 | 64 38 39 Cannon 13 | . . 13 Launcher 6 | . 4 2 Special 6 | 6 . . Kinetic 38 | . . 38 Thermal 122 | 70 38 14 Explosive 6 | . 4 2 Electromagnetic . | . . . Robot Hit Streak 9 | 8 5 9 Robot Miss Streak 5 | 3 5 1 Penetration Max . | . . . Secondary Targets 2 | . 2 . Max Gunslinging Chain 1 | . 1 . Shots Hit Robots 74 | 39 18 17 Core Hits 26 | 14 8 4 Critical Kills . | . . . Critical Parts Destroyed . | . . . Critical Strikes 7 | 4 2 1 Burn 6 | 4 2 . Blast 1 | . . 1 Melee Attacks . | . . . Impact . | . . . Slashing . | . . . Piercing . | . . . Sneak Attacks . | . . . Combat Hostiles . | . . . Follow-up Attacks . | . . . Damage Inflicted 1208 | 515 365 328 Guns 765 | 515 164 86 Cannons 96 | . . 96 Explosions 347 | . 201 146 Melee . | . . . Ramming . | . . . Kinetic 182 | . . 182 Thermal 679 | 515 164 . Explosive 347 | . 201 146 Electromagnetic . | . . . Impact . | . . . Slashing . | . . . Piercing . | . . . Highest Corruption . | . . . Average Corruption . | . . . Corruption Purged . | . . . Corruption Blocked . | . . . Overload Shots . | . . . Overflow Damage 3 | . . 3 Projectiles . | . . . Explosions 3 | . . 3 Melee . | . . . Knockbacks 2 | . . 2 Impact . | . . . Kinetic 2 | . . 2 Secondary . | . . . Self-Inflicted Damage 69 | . 27 42 Shots 3 | . 1 2 Rammed . | . . . Targets Rammed . | . . . Kicked . | . . . Crushed . | . . . Highest Temperature 453 | 194 453 . Average Temperature 106 | 64 188 . Received Heat Transfer 57 | . . 57 Effects 5 | . 5 . Shutdowns 2 | . 2 . Interference 1 | . 1 . Matter Decay 1 | . 1 . Short Circuit 1 | . 1 . Siege Activations . | . . . Martial Activations . | . . . Shielding Activations . | . . . Robots Disrupted . | . . . Combat Hostiles . | . . . Robots Corrupted . | . . . Combat Hostiles . | . . . Parts Fried . | . . . Impact Corruptions . | . . . Robots Melted 1 | . 1 . Combat Hostiles 1 | . 1 . Parts Melted 3 | 3 . . Heat Transferred 2442 | 1813 629 . Parts Sabotaged . | . . . Parts Stolen . | . . . Parts Stripped . | . . . Power Chain Reactions . | . . . Alert | -11 -10 -10 ------- Run | Yrd Mat Sub Maximum Alert Level . | . . . Low Security (%) 100 | 100 100 . Level 1 . | . . . Level 2 . | . . . Level 3 . | . . . Level 4 . | . . . Level 5 . | . . . High Security . | . . . Max Security . | . . . Peak Influence 156 | 15 156 . Initial . | . . . Average 4 | . 27 . Influence Increases 312 | 65 247 . Destroy 0b10 Robot/C 120 | . 120 . Destroy 0b10 Robot/NC 75 | 65 10 . Destroy Leader 22 | . 22 . Disable Machine 15 | . 15 . Destroy Structure 20 | . 20 . Lose Combat Pursuer 60 | . 60 . Influence Decreases 312 | 65 101 146 Entered New Map 71 | . . 71 Time Decay 211 | 65 91 55 Lost Part 30 | . 10 20 Squads Dispatched 1 | . 1 . Investigation . | . . . Extermination . | . . . Reinforcement 1 | . 1 . Assault . | . . . Garrison . | . . . Intercept . | . . . Searches Triggered . | . . . Construction Impeded . | . . . Haulers Reinforced . | . . . Active Scanning Responses . | . . . Cargo Convoy Interrupts . | . . . Stealth | -11 -10 -10 --------- Run | Yrd Mat Sub Distress Signals . | . . . Communications Jammed . | . . . Distress Signals . | . . . Times Spotted 23 | . 15 8 Peak Tracking Total 5 | . 5 3 Tactical Retreats 4 | . 2 2 Traps | -11 -10 -10 ------- Run | Yrd Mat Sub Traps Triggered . | . . . Indirectly . | . . . Trap Hack Attempts . | . . . Triggered . | . . . Disarmed . | . . . Reprogrammed . | . . . Reused . | . . . Traps Extracted . | . . . Installed . | . . . Triggered . | . . . Most Traps Carried 1 | . . 1 Machines | -11 -10 -10 ---------- Run | Yrd Mat Sub Machines Disabled 2 | . 1 1 Max in Single Turn 1 | . 1 1 Machines Repaired . | . . . Machines Dismantled . | . . . Machines Sabotaged . | . . . Overloaded Fab Kills . | . . . Hacking | -11 -10 -10 --------- Run | Yrd Mat Sub Machines Accessed 1 | . . 1 Terminals . | . . . Fabricators . | . . . Repair Stations . | . . . Recycling Units . | . . . Scanalyzers . | . . . Garrison Access . | . . . Total Hacks 9 | . . 9 Successful 9 | . . 9 Failed . | . . . Catastrophic . | . . . Database Lockouts . | . . . Manual . | . . . Terminals . | . . . Fabricators . | . . . Repair Stations . | . . . Recycling Units . | . . . Scanalyzers . | . . . Garrison Access . | . . . Terminal Hacks 9 | . . 9 Record 8 | . . 8 Proto ID Catalog 1 | . . 1 Fabricator Hacks . | . . . Repair Station Hacks . | . . . Recycling Unit Hacks . | . . . Scanalyzer . | . . . Garrison Access Hacks . | . . . Unauthorized Hacks . | . . . Terminals . | . . . Fabricators . | . . . Repair Stations . | . . . Recycling Units . | . . . Scanalyzers . | . . . Garrison Access . | . . . Data Cores Recovered . | . . . Used . | . . . Hacking Detections . | . . . Full Trace Events . | . . . Feedback Events . | . . . Feedback Blocked . | . . . Robot Schematics Acquired . | . . . Robots Built . | . . . Authchips . | . . . Time . | . . . Total Robot Build Rating . | . . . Part Schematics Acquired . | . . . Parts Built . | . . . Authchips . | . . . Time . | . . . Total Part Build Rating . | . . . Parts Repaired . | . . . Time . | . . . Parts Recycled . | . . . Recycled Matter . | . . . Retrieved Matter . | . . . Retrieved Components . | . . . Parts Scanalyzed . | . . . Part Schematics Acquired . | . . . Parts Damaged . | . . . Bothacking | -11 -10 -10 ------------ Run | Yrd Mat Sub Used RIF Installer . | . . . Robots Hacked . | . . . Non-combat . | . . . Combat . | . . . Robot Hacks Applied . | . . . Relay Couplers Released . | . . . Fabnet Peak Effective % . | . . . Robots Rewired . | . . . Allies Hacked . | . . . Hacks Repelled . | . . . Allies | -11 -10 -10 -------- Run | Yrd Mat Sub Total Allies . | . . . Largest Group . | . . . Highest-Rated Group . | . . . Highest-Rated Ally . | . . . Total Orders . | . . . Ally Attacks . | . . . Total Damage . | . . . Kills . | . . . Allies Corrupted . | . . . Allies Melted . | . . . Intel | -11 -10 -10 ------- Run | Yrd Mat Sub Active Infowar (turns) 1199 | 1139 60 . Terrain 1199 | 1139 60 . Robot Analysis Total . | . . . Derelict Logs Recovered 1 | . . 1 Drone Launches . | . . . Drone Recoveries . | . . . Exploration | -11 -10 -10 ------------- Run | Yrd Mat Sub Turns Passed 2710 | 1534 266 910 Spaces Moved 1541 | 425 223 893 Core 446 | 425 21 . Treads . | . . . Legs . | . . . Wheels . | . . . Hover . | . . . Flight 1095 | . 202 893 Fastest Speed 37 | 50 37 37 Average Speed 112 | 179 82 88 Slowest Speed 200 | 200 200 200 Overloaded Moves . | . . . Propulsion Burnouts . | . . . Robots Hopped . | . . . Potential Cave-ins . | . . . Cave-ins Triggered . | . . . Exploration Rate (%) 34 | 22 25 55 Regions Visited 2 Branch Regions 1 Pre-discovered Areas 1 | . . 1 Known Exits Taken . | . . . Unknown Exits Taken 2 | 1 1 . Scrap Searched 4 | . . 4 Spaces Dug 7 | 5 2 . Terrain Destroyed 29 | 5 18 6 Melee . | . . . Projectile 5 | 5 . . AOE 24 | . 18 6 Terrain Rammed . | . . . Walls Destroyed . | . . . Machines Disabled . | . . . Actions | -11 -10 -10 --------- Run | Yrd Mat Sub Total 2339 | 1114 262 963 Wait 641 | 633 . 8 Move 1539 | 424 222 893 Hop . | . . . Pick Up 24 | 8 6 10 Fast Attach . | . . . Attach 16 | 6 6 4 Detach . | . . . Swap 2 | 1 . 1 Drop 7 | 4 1 2 Fire 110 | 38 27 45 Melee . | . . . Ram . | . . . Kick . | . . . Crush . | . . . Escape Stasis . | . . . Rewire . | . . . Trap . | . . . Miscellaneous . | . . . Route ------- -11/Scrapyard -10/Materials -10/Subcaves (discovered 1 exit: [*Mat]) History --------- Turn | Location | Event 4 | -11/Scrapyard | Discovered new exit (range 16) 1535 | -11/Scrapyard | Entered Materials 1536 | -10/Materials | Build established: Mutant 1765 | -10/Materials | Lost 3 parts (1p1n1w) 1767 | -10/Materials | Core integrity fell below 50% 1795 | -10/Materials | Discovered new exit (range 5) 1801 | -10/Materials | Entered Subcaves 1807 | -10/Subcaves | Learned location of Zion (-7) 1814 | -10/Subcaves | Ambushed by Subdwellers from Twisted Machinery 1917 | -10/Subcaves | Ambushed by Subdwellers from Twisted Machinery 1927 | -10/Subcaves | Shifting Twisted Machinery released Sub. Power Source 1941 | -10/Subcaves | Core integrity fell below 20% 1972 | -10/Subcaves | Discovered new exit (range 12) 1975 | -10/Subcaves | Shifting Twisted Machinery released Piercing Trap 2033 | -10/Subcaves | Disturbed a concealed Subdweller 2090 | -10/Subcaves | Shifting Twisted Machinery released Battle Cannon 2093 | -10/Subcaves | Shifting Twisted Machinery released Mak. Thermal Plating 2240 | -10/Subcaves | Visited 4L-MR0's lab 2255 | -10/Subcaves | Found Meta Core 2267 | -10/Subcaves | Attached Meta Core, gained temporary slots: Propulsion, Utility, Weapon 2711 | -10/Subcaves | Destroyed by NG-SB8(R) with Subdweller Laser Last Messages --------------- Core temporarily expanded with Weapon slot. Subatomizers dissect the Sub. Power Source. Acquired 49 matter. Acquired 44 matter. Subatomizers dissect the Sub. Power Source. Subatomizers dissect the Sub. Power Source, destroying it. Subatomizers dissect the Sub. Monowheel, destroying it. Subatomizers dissect the Sub. Power Source. Subatomizers dissect the Sub. Power Source, destroying it. Acquired Mak. Hammer. Subatomizers dissect the Sub. Laser, destroying it. NG-SB8(R) Sub. Power Source blasted off. NG-SB8(R) knocked back. Flight Unit destroyed. NG-SB8(R) knocked back. Subatomizers dissect the Sub. Power Source. Map ----- +----------------------------------------------------+ | ??????????????????????????????????#% ## #??? | | ??????????????????????????????????###&"## ##??? | | ???????????????????????????????????#& ### ##??? | | ??????????????????????????????????### # # ##?? | | ??????????????????????????????????# "*" # #?? | | ??????????????????????????????????# ##?? | | ?????????????????????????????????## ##??? | | ????????????????????????????????## #???? | | ????????????????????????????????# ##??? | | ????????????????????????????????# ## #??? | | ????????????????????????????????# ### #??? | | ????????????????????????????????# ## #??? | | ????????????????????????????????# #??? | | ????????????????????????????????# #??? | | ???????????????????????????????## #??? | | ???????????????????????????????# ##?? | | ???????????????????????????????## #?? | | ????????????????????????????????# #?? | | ????????????????????????????????# ### ##?? | | ???????????????????##########??## #### ##??? | | ??????????????????## ## ## #?## #?# ##???? | | ????????#?????????# ### ##?#### #????? | | ????????# ????# ##??????###????? | | ????????# ### ##??????????????? | | ????????# ##??####?????????? | | ??????????#### @ ###???# #?????????? | | ?????????????## ## ########## #?????????? | | ?????????######## ?## #### ## ##?????????? | | ????????## #??## ??# #??????????? | | ??????### #???###??# " ##?????????? | | ??????# #?????????# " #?????????? | | ??????# #????????# *" #?????????? | | ?????## ##???????# % #?????????? | | ????## ##?####?## %%R ##????????? | | ????# ### ##### #????????? | | ##?## ## #### """ #????????? | | ### ### #?# "# ##???????? | | #?# ## ### "## ######??? | | ### ### " ##### #??? | | ## ## ##""" "" """"#??## #??? | | ### ## # """ " #????### #??? | | ## ## ###"##""## ###??# #??? | | ### #?##?##### #### # #??? | | ##### #???#### ## # ###??? | | ##?# # #??##" " ##""# #????? | | ##?# #?##"" ### """ #### #???? | | ## ### #?# " #### #?? #???? | | ?## ## ##?## ### #### ###??" ##???? | | ??### ### ##???????## #?## #???? #????? | | ????# ### #????????## #??## #??? ????? | +----------------------------------------------------+ Best States ------------- Heat Dissipation 25 Energy Generation 17 Energy Capacity 250 Matter Stores 300 Matter Capacity 300 Sight Range 16 Terrain Scan Range 16 Terrain Scan Density 10 Evasion (%) 62 Recoil Reduction 1 Offensive Hacking 10 Item Schematics ----------------- None Robot Schematics ------------------ None Fabricated ------------ Nothing Repaired ---------- Nothing Alien Tech Used ----------------- None Achievements -------------- None Challenges ------------ None Game ------ Seed GravityWaveInjector Manual? 0 Play Time 00:12:53 Cumulative 66.3 hours Start 2025.07.23 @ 14:23:50 End 2025.07.23 @ 14:36:23 Sessions 1 Manual Loads 0 Difficulty Rogue Special Mode None Game No. 276 Rogue 276 Adventurer 0 Explorer 0 Win Type - Total 0 Types 0/0/0/0/0/0/0/0/0/0 Lore% 43 Gallery% 32 Achievement% 26 Wizard Run 0 Options --------- Layout 2 ASCII 0 Keyboard 0 Movement Mouse Keybinds 0 Fullscreen 1 Font 24/Terminus Map View 50x44 Zoom Use 0% Tactical HUD 0 Map Filters NONE Filters NONE Steam 1 RUN: 71c1b65c-80d1-4cef-9b8a-85e8fd469eb7